{"text_format":"3","workbook":"xlsx","n_sheets":3,"sheets":["Kezdés","Havi főiskolai költségvetés","chart_calcs"],"not_rendered":{"charts":4,"defined_names":19},"read":"whole","date_system":"1900"}

{"sheet":"Kezdés","index":0,"n_rows":7,"n_cols":2,"rows_kept":7}
[null,"A SABLON ISMERTETÉSE"]
[null,"A Havi főiskolai költségvetés munkalapot használva nyomon követheti a bevételét, kiadásait és pénzforgalmát."]
[null,"Adja meg a havi bevételét és kiadásait az összes bevétele és kiadása kiszámításához."]
[null,"A sablon automatikusan kiszámítja a Pénzforgalom, és frissíti a Pénzforgalom diagramot."]
[null,"A csúszkát választva jelenítse meg a bevétel, a kiadások és a pénzforgalom hónapos és éves diagramjait."]
[null,"Megjegyzés: "]
[null,"A munkalap A oszlopában további útmutatást olvashat. Ez a szöveg szándékosan van elrejtve. Ha törölni szeretné a szöveget, jelölje ki az A oszlopot, majd nyomja le a DELETE billentyűt. Ha láthatóvá szeretné tenni a szöveget, jelölje ki az A oszlopot, majd módosítsa a betűszínt."]

{"sheet":"Havi főiskolai költségvetés","index":1,"n_rows":72,"n_cols":16,"rows_kept":72,"merged":[[5,1,14,3],[5,4,14,11],[5,12,13,15],[15,1,19,15],[20,1,21,15]]}
["Ezen a munkalapon havi főiskolai költségvetés hozhat létre. A jobbra lévő cellában és a B1 cellában szerepel a munkalap címe. Ennek az oszlopnak a celláiban a munkalap használatát megkönnyítő útmutatás olvasható. A következő utasítás az A4 cellában található.","Havi főiskolai költségvetés"]
[]
[]
["A jobbra lévő cellában a Bevétel, az E4 cellában a Kiadások, az M4 cellában pedig a Pénzforgalom felirat látható.",{"$f":"chart_calcs!$D$6","v":"év bevétel:"},null,null,{"$f":"chart_calcs!$D$7","v":"év kiadás:"},{"$nulls":7},{"$f":"chart_calcs!$D$8","v":"év pénzforgalom:"}]
["A sablon automatikusan kiszámítja a bevételt a jobbra lévő cellában, a kiadásokat az E5 cellában és a pénzforgalmat az M5 cellában.",{"$f":"\" \"&chart_calcs!$F$6","v":" 1 225 Ft"},null,null,{"$f":"\" \"&chart_calcs!$F$7","v":" 1 056 Ft"},{"$nulls":7},{"$f":"\" \"&chart_calcs!$F$8","v":" 169 Ft"}]
["A jobbra lévő cellában a bevételösszegzést és az E6 cellában a kiadásösszegzést megjelenítő gyűrűdiagramot, valamint az M6 cellában a pozitív és negatív pénzforgalmat megjelenítő sávdiagramot automatikusan frissíti a sablon. A következő utasítás az A17 cellában található.","Ebben a cellában látható a kijelölt hónap vagy év bevételének összegzését megjelenítő gyűrűdiagram.",null,null,"Ebben a cellában látható a kijelölt hónap vagy év kiadásainak összegzését megjelenítő gyűrűdiagram.",{"$nulls":7},"Ebben a cellában látható a kijelölt hónap vagy év pozitív vagy negatív pénzforgalmát megjelenítő sávdiagram."]
{"$rows_empty":9}
[null,"Ebben a cellában látható a kijelölt hónap vagy év pénzforgalmát megjelenítő vonaldiagram."]
["A jobbra lévő cellában a pénzforgalom vonaldiagramja látható. A következő utasítás az A21 cellában található."]
[]
[]
[]
["A jobb oldalon lévő csúszkát választva jelenítse meg a havi vagy éves bevétel, a kiadások és a pénzforgalom adatait és diagramjait. A következő utasítás az A25 cellában található.","Ebben a cellában egy csúszka található."]
[]
[]
[]
["A jobbra lévő cellában választhatja ki a hónapot. Jelenítse meg a lehetőségeket az ALT+LE billentyűkombinációval, majd a LE és az ENTER billentyűvel kiválaszthatja a megfelelőt.","JAN"]
["A kijelölt időszak automatikusan frissül a P26 cellában.",{"$nulls":14},{"$f":"KijelöltIdőszak","v":"00 "}]
["Ebben a sorban látható a Havi készpénz a kiadások után felirat a jobbra lévő cellában, a hónapok a C27–N27 cellákban, az év az O27 cellában a növekedés százalékos értéke a P27 cellában.","Havi készpénz a kiadások után",{"$f":"ElsőHónap","v":"00 "},{"$f":"KövetkezőHónap","v":{"$error":"#VALUE!"}},{"$f":"KövetkezőHónap","v":{"$error":"#VALUE!"}},{"$f":"KövetkezőHónap","v":{"$error":"#VALUE!"}},{"$error":"#VALUE!"},{"$error":"#VALUE!"},{"$error":"#VALUE!"},{"$error":"#VALUE!"},{"$error":"#VALUE!"},{"$error":"#VALUE!"},{"$error":"#VALUE!"},{"$error":"#VALUE!"},"ÉV  ","% NÖV. "]
["A jobbra lévő cellában látható a Pénzforgalom felirat. A sablon automatikusan kiszámítja az egyes hónapok pénzforgalom a C28–N28 cellákban, az éves összeget az O28 cellában és a növekedés százalékos értékét a P28 cellában. A sablon automatikusan frissíti az értékgörbét a Q28 cellában.","Pénzforgalom",{"$f":"C37-C72","v":169},69,192,199,204,{"v":-771,"d":"-771 "},124,154,{"v":-721,"d":"-721 "},109,34,{"v":-61,"d":"-61 "},{"$f":"SUM(C28:N28)","v":{"v":-299,"d":"-299 "}},{"$f":"INDEX($C28:$O28,,KijelöltIdőszakOszlop)/INDEX($C$37:$O$37,,KijelöltIdőszakOszlop)","v":{"v":0.13795918367346938,"d":"13.8%"}}]
["A jobbra lévő cellában látható a Göngyölített pénzforgalom felirat. A sablon automatikusan kiszámítja az egyes hónapok göngyölített pénzforgalom a C29–N29 cellákban, az éves összeget az O29 cellában és a növekedés százalékos értékét a P29 cellában. A sablon automatikusan frissíti az értékgörbét a Q29 cellában. A következő utasítás az A31 cellában található.","Göngyölített pénzforgalom",{"$f":"SUM($C$28:C$28)","v":169},{"$f":"SUM($C$28:D$28)","v":238},{"$f":"SUM($C$28:E$28)","v":430},{"$f":"SUM($C$28:F$28)","v":629},{"$f":"SUM($C$28:G$28)","v":833},{"$f":"SUM($C$28:H$28)","v":62},{"$f":"SUM($C$28:I$28)","v":186},{"$f":"SUM($C$28:J$28)","v":340},{"$f":"SUM($C$28:K$28)","v":{"v":-381,"d":"-381 "}},{"$f":"SUM($C$28:L$28)","v":{"v":-272,"d":"-272 "}},{"$f":"SUM($C$28:M$28)","v":{"v":-238,"d":"-238 "}},{"$f":"SUM($C$28:N$28)","v":{"v":-299,"d":"-299 "}}]
[]
["A Havi bevétel felirat látható a jobbra lévő cellában, a hónapok a C31–N31 cellákban, az év az O31 cellában és a növekedés százalékos értéke a P31 cellában. A havi bevétel tételeit a B32–B36 cellákban adhatja meg, a havi összegeket pedig a C32–N36 cellákban. A sablon automatikusan kiszámítja az éves bevételt az O32–O36 cellákban és a növekedés százalékos értékét a P32–P36 cellákban. A következő utasítás az A37 cellában található.","HAVI BEVÉTEL",{"$f":"ElsőHónap","v":"00 "},{"$f":"KövetkezőHónap","v":{"$error":"#VALUE!"}},{"$error":"#VALUE!"},{"$error":"#VALUE!"},{"$error":"#VALUE!"},{"$error":"#VALUE!"},{"$error":"#VALUE!"},{"$error":"#VALUE!"},{"$error":"#VALUE!"},{"$error":"#VALUE!"},{"$error":"#VALUE!"},{"$error":"#VALUE!"},"ÉV  ","% NÖV. "]
[null,"Pénzügyi támogatás (ösztöndíjak, tanulmányi ösztöndíjak, hitelek), amelyeket Ön kapott",0,0,750,750,750,750,750,750,750,750,750,750,{"$f":"SUM(C32:N32)","v":{"v":7500,"d":"7,500"}},{"$f":"INDEX($C32:$O32,,KijelöltIdőszakOszlop)/INDEX($C$37:$O$37,,KijelöltIdőszakOszlop)","v":{"v":0,"d":"0.0%"}}]
[null,"Munkaviszonyból származó nettó fizetés",450,450,450,450,450,450,450,450,550,350,350,350,{"v":5200,"d":"5,200"},{"$f":"INDEX($C33:$O33,,KijelöltIdőszakOszlop)/INDEX($C$37:$O$37,,KijelöltIdőszakOszlop)","v":{"v":0.3673469387755102,"d":"36.7%"}}]
[null,"Családi pénzügyi segítség",200,200,{"v":1000,"d":"1,000"},350,350,350,350,350,350,350,350,350,{"v":4550,"d":"4,550"},{"$f":"INDEX($C34:$O34,,KijelöltIdőszakOszlop)/INDEX($C$37:$O$37,,KijelöltIdőszakOszlop)","v":{"v":0.16326530612244897,"d":"16.3%"}}]
[null,"Kivétek megtakarításból",500,350,150,0,0,0,0,0,0,0,0,0,{"v":1000,"d":"1,000"},{"$f":"INDEX($C35:$O35,,KijelöltIdőszakOszlop)/INDEX($C$37:$O$37,,KijelöltIdőszakOszlop)","v":{"v":0.40816326530612246,"d":"40.8%"}}]
[null,"Egyéb (gyerektartás, állami támogatás, ajándékok stb.)",75,75,75,75,75,75,75,75,75,75,75,75,900,{"$f":"INDEX($C36:$O36,,KijelöltIdőszakOszlop)/INDEX($C$37:$O$37,,KijelöltIdőszakOszlop)","v":{"v":0.061224489795918366,"d":"6.1%"}}]
["A jobbra lévő cellában az Összes bevételét felirat látható. A sablon automatikusan kiszámítja az egyes hónapok összes bevételét a C37–N37 cellákban, az éves bevételt az O37 cellában és a növekedés százalékos értékét a P37 cellában. A sablon automatikusan frissíti az értékgörbét a Q37 cellában. A következő utasítás az A39 cellában található.","ÖSSZES BEVÉTEL",{"$f":"SUM(C32:C36)","v":{"v":1225,"d":"1,225"}},{"v":1075,"d":"1,075"},{"v":2425,"d":"2,425"},{"v":1625,"d":"1,625"},{"v":1625,"d":"1,625"},{"v":1625,"d":"1,625"},{"v":1625,"d":"1,625"},{"v":1625,"d":"1,625"},{"v":1725,"d":"1,725"},{"v":1525,"d":"1,525"},{"v":1525,"d":"1,525"},{"v":1525,"d":"1,525"},{"v":19150,"d":"19,150"},{"$f":"INDEX($C37:$O37,,KijelöltIdőszakOszlop)/INDEX($C$37:$O$37,,KijelöltIdőszakOszlop)","v":{"v":1,"d":"100.0%"}}]
[]
["A Havi kiadás felirat látható a jobbra lévő cellában, a hónapok a C39–N39 cellákban, az év az O39 cellában és a növekedés százalékos értéke a P39 cellában.","HAVI KIADÁS",{"$f":"ElsőHónap","v":"00 "},{"$f":"KövetkezőHónap","v":{"$error":"#VALUE!"}},{"$error":"#VALUE!"},{"$error":"#VALUE!"},{"$error":"#VALUE!"},{"$error":"#VALUE!"},{"$error":"#VALUE!"},{"$error":"#VALUE!"},{"$error":"#VALUE!"},{"$error":"#VALUE!"},{"$error":"#VALUE!"},{"$error":"#VALUE!"},"ÉV  ","% NÖV. "]
["A jobbra lévő cellában adhatja meg vagy módosíthatja a kiadási tételeket és a C40–N43 cellákban pedig a havi összegeket. A sablon automatikusan kiszámítja az éves összeget az O40–O43 cellákban és a növekedés százalékos értékét a P40–P43 cellákban. A sablon automatikusan frissíti az értékgörbét a Q40 cellában. A következő utasítás az A45 cellában található.","Szállás és ellátás",{"$f":"SUM(C41:C43)","v":565},565,565,565,565,565,565,565,565,565,565,565,{"$f":"SUM(C40:N40)","v":{"v":6780,"d":"6,780"}},{"$f":"INDEX($C40:$O40,,KijelöltIdőszakOszlop)/INDEX($C$72:$O$72,,KijelöltIdőszakOszlop)","v":{"v":0.5350378787878788,"d":"53.5%"}}]
[null,null,315,315,315,315,315,315,315,315,315,315,315,315,{"$f":"SUM(C41:N41)","v":{"v":3780,"d":"3,780"}},{"$f":"INDEX($C41:$O41,,KijelöltIdőszakOszlop)/INDEX($C$72:$O$72,,KijelöltIdőszakOszlop)","v":{"v":0.29829545454545453,"d":"29.8%"}}]
[null,null,200,200,200,200,200,200,200,200,200,200,200,200,{"$f":"SUM(C42:N42)","v":{"v":2400,"d":"2,400"}},{"$f":"INDEX($C42:$O42,,KijelöltIdőszakOszlop)/INDEX($C$72:$O$72,,KijelöltIdőszakOszlop)","v":{"v":0.1893939393939394,"d":"18.9%"}}]
[null,null,50,50,50,50,50,50,50,50,50,50,50,50,{"$f":"SUM(C43:N43)","v":600},{"$f":"INDEX($C43:$O43,,KijelöltIdőszakOszlop)/INDEX($C$72:$O$72,,KijelöltIdőszakOszlop)","v":{"v":0.04734848484848485,"d":"4.7%"}}]
[]
["A jobbra lévő cellában adhatja meg vagy módosíthatja a kiadási tételeket és a C46–N48 cellákban pedig a havi összegeket. A sablon automatikusan kiszámítja az éves összeget az O46–O48 cellákban és a növekedés százalékos értékét a P46–P48 cellákban. A sablon automatikusan frissíti az értékgörbét a Q46 cellában. A következő utasítás az A50 cellában található.","Tandíj és díjak",{"$f":"SUM(C46:C47)","v":0},0,750,0,0,650,0,0,650,0,0,0,{"$f":"SUM(C45:N45)","v":{"v":2050,"d":"2,050"}},{"$f":"INDEX($C45:$O45,,KijelöltIdőszakOszlop)/INDEX($C$72:$O$72,,KijelöltIdőszakOszlop)","v":{"v":0,"d":"0.0%"}}]
[null,null,0,0,500,0,0,500,0,0,500,0,0,0,{"$f":"SUM(C46:N46)","v":{"v":1500,"d":"1,500"}},{"$f":"INDEX($C46:$O46,,KijelöltIdőszakOszlop)/INDEX($C$72:$O$72,,KijelöltIdőszakOszlop)","v":{"v":0,"d":"0.0%"}}]
[null,null,0,0,250,0,0,150,0,0,150,0,0,0,{"$f":"SUM(C47:N47)","v":550},{"$f":"INDEX($C47:$O47,,KijelöltIdőszakOszlop)/INDEX($C$72:$O$72,,KijelöltIdőszakOszlop)","v":{"v":0,"d":"0.0%"}}]
[]
["A jobbra lévő cellában adhatja meg vagy módosíthatja a kiadási tételeket és a C49–N51 cellákban pedig a havi összegeket. A sablon automatikusan kiszámítja az éves összeget az O49–O51 cellákban és a növekedés százalékos értékét a P49–P51 cellákban. A sablon automatikusan frissíti az értékgörbét a Q49 cellában. A következő utasítás az A53 cellában található.","Könyvek és kellékek",{"$f":"SUM(C50:C51)","v":0},0,325,20,20,325,10,10,400,15,15,15,{"$f":"SUM(C49:N49)","v":{"v":1155,"d":"1,155"}},{"$f":"INDEX($C49:$O49,,KijelöltIdőszakOszlop)/INDEX($C$72:$O$72,,KijelöltIdőszakOszlop)","v":{"v":0,"d":"0.0%"}}]
[null,null,0,0,225,0,0,275,0,0,325,0,0,0,{"$f":"SUM(C50:N50)","v":825},{"$f":"INDEX($C50:$O50,,KijelöltIdőszakOszlop)/INDEX($C$72:$O$72,,KijelöltIdőszakOszlop)","v":{"v":0,"d":"0.0%"}}]
[null,null,0,0,100,20,20,50,10,10,75,15,15,15,{"$f":"SUM(C51:N51)","v":330},{"$f":"INDEX($C51:$O51,,KijelöltIdőszakOszlop)/INDEX($C$72:$O$72,,KijelöltIdőszakOszlop)","v":{"v":0,"d":"0.0%"}}]
[]
["A jobbra lévő cellában adhatja meg vagy módosíthatja a kiadási tételeket és a C54–N58 cellákban pedig a havi összegeket. A sablon automatikusan kiszámítja az éves összeget az O54–O58 cellákban és a növekedés százalékos értékét a P54–P58 cellákban. A sablon automatikusan frissíti az értékgörbét a Q54 cellában. A következő utasítás az A60 cellában található.","Közlekedés",{"$f":"SUM(C54:C57)","v":224},174,174,219,174,174,274,219,174,174,224,269,{"$f":"SUM(C53:N53)","v":{"v":2473,"d":"2,473"}},{"$f":"INDEX($C53:$O53,,KijelöltIdőszakOszlop)/INDEX($C$72:$O$72,,KijelöltIdőszakOszlop)","v":{"v":0.21212121212121213,"d":"21.2%"}}]
[null,null,30,30,30,75,30,30,30,75,30,30,30,75,{"$f":"SUM(C54:N54)","v":495},{"$f":"INDEX($C54:$O54,,KijelöltIdőszakOszlop)/INDEX($C$72:$O$72,,KijelöltIdőszakOszlop)","v":{"v":0.028409090909090908,"d":"2.8%"}}]
[null,null,129,129,129,129,129,129,129,129,129,129,129,129,{"$f":"SUM(C55:N55)","v":{"v":1548,"d":"1,548"}},{"$f":"INDEX($C55:$O55,,KijelöltIdőszakOszlop)/INDEX($C$72:$O$72,,KijelöltIdőszakOszlop)","v":{"v":0.12215909090909091,"d":"12.2%"}}]
[null,null,15,15,15,15,15,15,15,15,15,15,15,15,{"$f":"SUM(C56:N56)","v":180},{"$f":"INDEX($C56:$O56,,KijelöltIdőszakOszlop)/INDEX($C$72:$O$72,,KijelöltIdőszakOszlop)","v":{"v":0.014204545454545454,"d":"1.4%"}}]
[null,null,50,0,0,0,0,0,100,0,0,0,50,50,{"$f":"SUM(C57:N57)","v":250},{"$f":"INDEX($C57:$O57,,KijelöltIdőszakOszlop)/INDEX($C$72:$O$72,,KijelöltIdőszakOszlop)","v":{"v":0.04734848484848485,"d":"4.7%"}}]
[]
["A jobbra lévő cellában adhatja meg vagy módosíthatja a kiadási tételeket és a 59–N65 cellákban pedig a havi összegeket. A sablon automatikusan kiszámítja az éves összeget az O59–O65 cellákban és a növekedés százalékos értékét a P59–P65 cellákban. A sablon automatikusan frissíti az értékgörbét a Q59 cellában. A következő utasítás az A67 cellában található.","Választható",{"$f":"SUM(C60:C65)","v":69},69,169,369,419,444,419,419,394,394,419,469,{"$f":"SUM(C59:N59)","v":{"v":4053,"d":"4,053"}},{"$f":"INDEX($C59:$O59,,KijelöltIdőszakOszlop)/INDEX($C$72:$O$72,,KijelöltIdőszakOszlop)","v":{"v":0.06534090909090909,"d":"6.5%"}}]
[null,null,0,0,0,50,100,100,100,100,75,75,100,100,800,{"$f":"INDEX($C60:$O60,,KijelöltIdőszakOszlop)/INDEX($C$72:$O$72,,KijelöltIdőszakOszlop)","v":{"v":0,"d":"0.0%"}}]
[null,null,69,69,69,69,69,69,69,69,69,69,69,69,828,{"$f":"INDEX($C61:$O61,,KijelöltIdőszakOszlop)/INDEX($C$72:$O$72,,KijelöltIdőszakOszlop)","v":{"v":0.06534090909090909,"d":"6.5%"}}]
[null,null,0,0,0,0,0,25,0,0,0,0,0,50,75,{"$f":"INDEX($C62:$O62,,KijelöltIdőszakOszlop)/INDEX($C$72:$O$72,,KijelöltIdőszakOszlop)","v":{"v":0,"d":"0.0%"}}]
[null,null,0,0,100,100,100,100,100,100,100,100,100,100,{"v":1000,"d":"1,000"},{"$f":"INDEX($C63:$O63,,KijelöltIdőszakOszlop)/INDEX($C$72:$O$72,,KijelöltIdőszakOszlop)","v":{"v":0,"d":"0.0%"}}]
[null,null,0,0,0,50,50,50,50,50,50,50,50,50,450,{"$f":"INDEX($C64:$O64,,KijelöltIdőszakOszlop)/INDEX($C$72:$O$72,,KijelöltIdőszakOszlop)","v":{"v":0,"d":"0.0%"}}]
[null,null,0,0,0,100,100,100,100,100,100,100,100,100,900,{"$f":"INDEX($C65:$O65,,KijelöltIdőszakOszlop)/INDEX($C$72:$O$72,,KijelöltIdőszakOszlop)","v":{"v":0,"d":"0.0%"}}]
[]
["A jobbra lévő cellában adhatja meg vagy módosíthatja a kiadási tételeket és a C67–N70 cellákban pedig a havi összegeket. A sablon automatikusan kiszámítja az éves összeget az O67–O70 cellákban és a növekedés százalékos értékét a P67–P70 cellákban. A sablon automatikusan frissíti az értékgörbét a Q67 cellában. A következő utasítás az A72 cellában található.","Egyéb kiadások",{"$f":"SUM(C68:C70)","v":198},{"$f":"SUM(D68:D70)","v":198},250,253,243,238,233,258,263,268,268,268,{"$f":"SUM(C67:N67)","v":{"v":2938,"d":"2,938"}},{"$f":"INDEX($C67:$O67,,KijelöltIdőszakOszlop)/INDEX($C$72:$O$72,,KijelöltIdőszakOszlop)","v":{"v":0.1875,"d":"18.8%"}}]
[null,null,123,123,123,123,123,123,123,123,123,123,123,123,{"$f":"SUM(C68:N68)","v":{"v":1476,"d":"1,476"}},{"$f":"INDEX($C68:$O68,,KijelöltIdőszakOszlop)/INDEX($C$72:$O$72,,KijelöltIdőszakOszlop)","v":{"v":0.11647727272727272,"d":"11.6%"}}]
[null,null,0,0,52,55,45,40,35,60,65,70,70,70,{"$f":"SUM(C69:N69)","v":562},{"$f":"INDEX($C69:$O69,,KijelöltIdőszakOszlop)/INDEX($C$72:$O$72,,KijelöltIdőszakOszlop)","v":{"v":0,"d":"0.0%"}}]
[null,null,75,75,75,75,75,75,75,75,75,75,75,75,{"$f":"SUM(C70:N70)","v":900},{"$f":"INDEX($C70:$O70,,KijelöltIdőszakOszlop)/INDEX($C$72:$O$72,,KijelöltIdőszakOszlop)","v":{"v":0.07102272727272728,"d":"7.1%"}}]
[]
["A jobbra lévő cellában látható az Összes kiadás felirat. A sablon automatikusan kiszámítja az egyes hónapok összes kiadás a C72–N72 cellákban, az éves kiadást az O72 cellában és a növekedés százalékos értékét a P72 cellában. A sablon automatikusan frissíti az értékgörbét a Q72 cellában.","ÖSSZES KIADÁS",{"$f":"SUM(C40,C45,C49,C53,C59,C67)","v":{"v":1056,"d":"1,056"}},{"v":1006,"d":"1,006"},{"v":2233,"d":"2,233"},{"v":1426,"d":"1,426"},{"v":1421,"d":"1,421"},{"v":2396,"d":"2,396"},{"v":1501,"d":"1,501"},{"v":1471,"d":"1,471"},{"v":2446,"d":"2,446"},{"v":1416,"d":"1,416"},{"v":1491,"d":"1,491"},{"v":1586,"d":"1,586"},{"$f":"SUM(C72:N72)","v":{"v":19449,"d":"19,449"}},{"$f":"INDEX($C72:$O72,,KijelöltIdőszakOszlop)/INDEX($C$72:$O$72,,KijelöltIdőszakOszlop)","v":{"v":1,"d":"100.0%"}}]

{"sheet":"chart_calcs","index":2,"n_rows":23,"n_cols":16,"rows_kept":23,"hidden":true}
["***Ennek a lapnak REJTVE kell maradnia***"]
[]
[{"$nulls":3},{"$f":"IFERROR(LOWER(TEXT(VALUE(KijelöltIdőszak&\" 1\"),\"hhhh\")),\"év\")","v":"év"}]
[]
[{"$nulls":3},"Dinamikus diagram címei"]
[{"$nulls":3},{"$f":"D3&\" bevétel:\"","v":"év bevétel:"},null,{"$f":"TEXT(INDEX('Havi főiskolai költségvetés'!$C$37:$O$37,,KijelöltIdőszakOszlop),\"# ### Ft\")","v":"1 225 Ft"}]
[{"$nulls":3},{"$f":"D3&\" kiadás:\"","v":"év kiadás:"},null,{"$f":"TEXT(INDEX('Havi főiskolai költségvetés'!$C$72:$O$72,,KijelöltIdőszakOszlop),\"# ### Ft\")","v":"1 056 Ft"}]
[{"$nulls":3},{"$f":"D3&\" pénzforgalom:\"","v":"év pénzforgalom:"},{"$f":"INDEX('Havi főiskolai költségvetés'!C28:O28,Görgetősávérték)","v":169},{"$f":"TEXT(E8,\"# ### Ft\")","v":"169 Ft"}]
[]
[]
[]
[{"$nulls":3},{"$f":"LOWER('Havi főiskolai költségvetés'!C27)","v":"00 "},{"$f":"LOWER('Havi főiskolai költségvetés'!D27)","v":{"$error":"#VALUE!"}},{"$f":"LOWER('Havi főiskolai költségvetés'!E27)","v":{"$error":"#VALUE!"}},{"$f":"LOWER('Havi főiskolai költségvetés'!F27)","v":{"$error":"#VALUE!"}},{"$f":"LOWER('Havi főiskolai költségvetés'!G27)","v":{"$error":"#VALUE!"}},{"$f":"LOWER('Havi főiskolai költségvetés'!H27)","v":{"$error":"#VALUE!"}},{"$f":"LOWER('Havi főiskolai költségvetés'!I27)","v":{"$error":"#VALUE!"}},{"$f":"LOWER('Havi főiskolai költségvetés'!J27)","v":{"$error":"#VALUE!"}},{"$f":"LOWER('Havi főiskolai költségvetés'!K27)","v":{"$error":"#VALUE!"}},{"$f":"LOWER('Havi főiskolai költségvetés'!L27)","v":{"$error":"#VALUE!"}},{"$f":"LOWER('Havi főiskolai költségvetés'!M27)","v":{"$error":"#VALUE!"}},{"$f":"LOWER('Havi főiskolai költségvetés'!N27)","v":{"$error":"#VALUE!"}},{"$f":"LOWER('Havi főiskolai költségvetés'!O27)","v":"év  "}]
[null,null,"Görgetősávérték: ",1]
[null,null,"Készpénzforgalom-diagram: ",{"$f":"IF(KijelöltIdőszak='Havi főiskolai költségvetés'!C$31,IF('Havi főiskolai költségvetés'!$C$28:$O$28>=0,'Havi főiskolai költségvetés'!$C$28:$O$28,NA()),NA())","v":69},{"$f":"IF(KijelöltIdőszak='Havi főiskolai költségvetés'!D$31,IF('Havi főiskolai költségvetés'!$C$28:$O$28>=0,'Havi főiskolai költségvetés'!$C$28:$O$28,NA()),NA())","v":{"$error":"#VALUE!"}},{"$f":"IF(KijelöltIdőszak='Havi főiskolai költségvetés'!E$31,IF('Havi főiskolai költségvetés'!$C$28:$O$28>=0,'Havi főiskolai költségvetés'!$C$28:$O$28,NA()),NA())","v":{"$error":"#VALUE!"}},{"$f":"IF(KijelöltIdőszak='Havi főiskolai költségvetés'!F$31,IF('Havi főiskolai költségvetés'!$C$28:$O$28>=0,'Havi főiskolai költségvetés'!$C$28:$O$28,NA()),NA())","v":{"$error":"#VALUE!"}},{"$f":"IF(KijelöltIdőszak='Havi főiskolai költségvetés'!G$31,IF('Havi főiskolai költségvetés'!$C$28:$O$28>=0,'Havi főiskolai költségvetés'!$C$28:$O$28,NA()),NA())","v":{"$error":"#VALUE!"}},{"$f":"IF(KijelöltIdőszak='Havi főiskolai költségvetés'!H$31,IF('Havi főiskolai költségvetés'!$C$28:$O$28>=0,'Havi főiskolai költségvetés'!$C$28:$O$28,NA()),NA())","v":{"$error":"#VALUE!"}},{"$f":"IF(KijelöltIdőszak='Havi főiskolai költségvetés'!I$31,IF('Havi főiskolai költségvetés'!$C$28:$O$28>=0,'Havi főiskolai költségvetés'!$C$28:$O$28,NA()),NA())","v":{"$error":"#VALUE!"}},{"$f":"IF(KijelöltIdőszak='Havi főiskolai költségvetés'!J$31,IF('Havi főiskolai költségvetés'!$C$28:$O$28>=0,'Havi főiskolai költségvetés'!$C$28:$O$28,NA()),NA())","v":{"$error":"#VALUE!"}},{"$f":"IF(KijelöltIdőszak='Havi főiskolai költségvetés'!K$31,IF('Havi főiskolai költségvetés'!$C$28:$O$28>=0,'Havi főiskolai költségvetés'!$C$28:$O$28,NA()),NA())","v":{"$error":"#VALUE!"}},{"$f":"IF(KijelöltIdőszak='Havi főiskolai költségvetés'!L$31,IF('Havi főiskolai költségvetés'!$C$28:$O$28>=0,'Havi főiskolai költségvetés'!$C$28:$O$28,NA()),NA())","v":{"$error":"#VALUE!"}},{"$f":"IF(KijelöltIdőszak='Havi főiskolai költségvetés'!M$31,IF('Havi főiskolai költségvetés'!$C$28:$O$28>=0,'Havi főiskolai költségvetés'!$C$28:$O$28,NA()),NA())","v":{"$error":"#VALUE!"}},{"$f":"IF(KijelöltIdőszak='Havi főiskolai költségvetés'!N$31,IF('Havi főiskolai költségvetés'!$C$28:$O$28>=0,'Havi főiskolai költségvetés'!$C$28:$O$28,NA()),NA())","v":{"$error":"#VALUE!"}},{"$f":"IF(KijelöltIdőszak='Havi főiskolai költségvetés'!O$31,IF('Havi főiskolai költségvetés'!$C$28:$O$28>=0,'Havi főiskolai költségvetés'!$C$28:$O$28,NA()),NA())","v":{"$error":"#N/A"}}]
[null,null,"Göngyölített: ",{"$f":"IF(KijelöltIdőszak='Havi főiskolai költségvetés'!C$31,IF('Havi főiskolai költségvetés'!$C$28:$O$28<0,'Havi főiskolai költségvetés'!$C$28:$O$28,NA()),NA())","v":{"$error":"#N/A"}},{"$f":"IF(KijelöltIdőszak='Havi főiskolai költségvetés'!D$31,IF('Havi főiskolai költségvetés'!$C$28:$O$28<0,'Havi főiskolai költségvetés'!$C$28:$O$28,NA()),NA())","v":{"$error":"#VALUE!"}},{"$f":"IF(KijelöltIdőszak='Havi főiskolai költségvetés'!E$31,IF('Havi főiskolai költségvetés'!$C$28:$O$28<0,'Havi főiskolai költségvetés'!$C$28:$O$28,NA()),NA())","v":{"$error":"#VALUE!"}},{"$f":"IF(KijelöltIdőszak='Havi főiskolai költségvetés'!F$31,IF('Havi főiskolai költségvetés'!$C$28:$O$28<0,'Havi főiskolai költségvetés'!$C$28:$O$28,NA()),NA())","v":{"$error":"#VALUE!"}},{"$f":"IF(KijelöltIdőszak='Havi főiskolai költségvetés'!G$31,IF('Havi főiskolai költségvetés'!$C$28:$O$28<0,'Havi főiskolai költségvetés'!$C$28:$O$28,NA()),NA())","v":{"$error":"#VALUE!"}},{"$f":"IF(KijelöltIdőszak='Havi főiskolai költségvetés'!H$31,IF('Havi főiskolai költségvetés'!$C$28:$O$28<0,'Havi főiskolai költségvetés'!$C$28:$O$28,NA()),NA())","v":{"$error":"#VALUE!"}},{"$f":"IF(KijelöltIdőszak='Havi főiskolai költségvetés'!I$31,IF('Havi főiskolai költségvetés'!$C$28:$O$28<0,'Havi főiskolai költségvetés'!$C$28:$O$28,NA()),NA())","v":{"$error":"#VALUE!"}},{"$f":"IF(KijelöltIdőszak='Havi főiskolai költségvetés'!J$31,IF('Havi főiskolai költségvetés'!$C$28:$O$28<0,'Havi főiskolai költségvetés'!$C$28:$O$28,NA()),NA())","v":{"$error":"#VALUE!"}},{"$f":"IF(KijelöltIdőszak='Havi főiskolai költségvetés'!K$31,IF('Havi főiskolai költségvetés'!$C$28:$O$28<0,'Havi főiskolai költségvetés'!$C$28:$O$28,NA()),NA())","v":{"$error":"#VALUE!"}},{"$f":"IF(KijelöltIdőszak='Havi főiskolai költségvetés'!L$31,IF('Havi főiskolai költségvetés'!$C$28:$O$28<0,'Havi főiskolai költségvetés'!$C$28:$O$28,NA()),NA())","v":{"$error":"#VALUE!"}},{"$f":"IF(KijelöltIdőszak='Havi főiskolai költségvetés'!M$31,IF('Havi főiskolai költségvetés'!$C$28:$O$28<0,'Havi főiskolai költségvetés'!$C$28:$O$28,NA()),NA())","v":{"$error":"#VALUE!"}},{"$f":"IF(KijelöltIdőszak='Havi főiskolai költségvetés'!N$31,IF('Havi főiskolai költségvetés'!$C$28:$O$28<0,'Havi főiskolai költségvetés'!$C$28:$O$28,NA()),NA())","v":{"$error":"#VALUE!"}},{"$f":"IF(KijelöltIdőszak='Havi főiskolai költségvetés'!O$31,IF('Havi főiskolai költségvetés'!$C$28:$O$28<0,'Havi főiskolai költségvetés'!$C$28:$O$28,NA()),NA())","v":{"$error":"#N/A"}}]
[]
[]
[null,null,"BEVÉTEL DIAGRAM ADATAI"]
[null,null,"Pénzügyi támogatás (ösztöndíjak, tanulmányi ösztöndíjak, hitelek), amelyeket Ön kapott",{"$f":"'Havi főiskolai költségvetés'!P32","v":{"v":0,"d":"0.0%"}}]
[null,null,"Munkaviszonyból származó nettó fizetés",{"$f":"'Havi főiskolai költségvetés'!P33","v":{"v":0.3673469387755102,"d":"36.7%"}}]
[null,null,"Családi pénzügyi segítség",{"$f":"'Havi főiskolai költségvetés'!P34","v":{"v":0.16326530612244897,"d":"16.3%"}}]
[null,null,"Kivétek megtakarításból",{"$f":"'Havi főiskolai költségvetés'!P35","v":{"v":0.40816326530612246,"d":"40.8%"}}]
[null,null,"Egyéb (gyerektartás, állami támogatás, ajándékok stb.)",{"$f":"'Havi főiskolai költségvetés'!P36","v":{"v":0.061224489795918366,"d":"6.1%"}}]